bitfinex/quotes_SOLUSD_20250819
["timestamp","ask_amount","ask_price","bid_price","bid_amount"]
[1755580911301,1e-08,180.1,180.09,39.68]
[1755580912016,0.71000001,180.1,180.09,39.68]
[1755580912922,1e-08,180.1,180.09,39.68]
[1755580913320,0.71000001,180.1,180.09,39.68]
[1755580915411,8.81055937,180.1,180.09,39.68]
[1755580915611,0.71000001,180.1,180.09,39.68]
[1755580918031,8.81055937,180.1,180.09,39.68]
[1755580921641,141.51055937,180.1,180.07,39.58]
[1755580921810,141.51055937,180.1,180.05,0.06]
[1755580921811,8.10055936,180.08,180.05,0.06]
[1755580922011,8.10055936,180.06,180.05,39.66]
[1755580922231,8.81055936,180.06,180.05,39.66]
[1755580922618,8.81055936,180.06,180.05,0.06]
[1755580922821,16.68336656,180.06,180.05,0.06]
[1755580923149,34.10055936,180.04,180.03,0.06]
[1755580923346,37.83000424,180.04,180.03,0.06]
[1755580923650,38.54000424,180.04,180.03,0.06]
[1755580924447,8.10055936,180.04,180.03,0.06]
[1755580925230,8.10055936,180.04,180.03,0.78]
[1755580925536,132.7,180.05,180.03,0.78]
[1755580926869,8.10055936,180.04,180.03,0.06]
[1755580927442,132.7,180.05,180.03,0.78]
[1755580927753,8.10055936,180.06,180.03,0.78]
[1755580928855,8.10055936,180.04,180.03,0.06]
[1755580929372,8.81055936,180.04,180.03,0.06]
[1755580930149,34.81055936,180.04,180.03,0.06]
[1755580931346,8.81055936,180.04,180.03,0.06]
[1755580931659,26.0,180.02,180.01,0.06]
[1755580931841,34.10055936,180.02,180.01,0.06]
[1755580932033,34.81055936,180.02,180.01,0.06]
[1755580933959,34.81055936,180.02,179.99,0.06]
[1755580933960,42.91111872,180.02,179.99,0.06]
[1755580934134,16.20111872,180.0,179.99,0.06]
[1755580934339,19.91953143,180.0,179.99,0.06]
[1755580934564,20.62953143,180.0,179.99,0.06]
[1755580935454,24.75688543,180.0,179.99,0.06]
[1755580937641,132.7,179.99,179.97,0.06]
[1755580937962,132.7,179.99,179.93,0.06]
[1755580937963,26.0,179.95,179.93,0.06]
[1755580938256,26.0,179.95,179.9,0.06]
[1755580938257,26.0,179.91,179.9,0.06]
[1755580938461,50.03557935,179.91,179.88,0.06]
[1755580938649,50.03557935,179.91,179.82,0.06]
[1755580938650,26.0,179.87,179.82,0.06]
[1755580938976,8.10055936,179.86,179.82,0.06]
[1755580939277,34.10055936,179.85,179.82,0.06]
[1755580939436,34.81055936,179.85,179.82,0.06]
[1755580940343,39.33050562,179.85,179.82,0.06]
[1755580941248,38.62050562,179.85,179.82,0.06]
[1755580941565,39.33050562,179.85,179.82,0.06]
[1755580946053,38.62050562,179.85,179.82,0.06]
[1755580946667,39.33050562,179.85,179.82,0.06]
[1755580949972,54.43672119,179.85,179.82,0.06]
[1755580950764,69.99691023,179.85,179.82,0.06]
[1755580950970,68.53295873,179.85,179.82,0.06]
[1755580951350,25.10621557,179.84,179.82,0.06]
[1755580951552,71.44295873,179.83,179.82,0.06]
[1755580951945,72.15295873,179.83,179.82,0.06]
[1755580953861,26.0,179.79,179.78,0.06]
[1755580954064,38.62050562,179.79,179.78,0.06]
[1755580956391,39.33050562,179.79,179.78,0.06]
[1755580956750,38.62050562,179.79,179.78,0.06]
[1755580956957,39.33050562,179.79,179.78,0.06]
[1755580957457,38.62050562,179.79,179.78,0.06]
[1755580957655,38.62050562,179.79,179.78,0.78]
[1755580961081,12.62050562,179.79,179.78,0.78]
[1755580961462,12.62050562,179.81,179.78,0.78]
[1755580961760,12.62050562,179.83,179.78,13.40050562]
[1755580961958,12.62050562,179.83,179.79,0.66]
[1755580962155,132.7,179.84,179.8,12.62050562]
[1755580962374,140.80918534,179.84,179.81,0.66]
[1755580962769,140.80918534,179.84,179.82,0.66]
[1755580963089,8.10918534,179.83,179.8,0.66]
[1755580963258,8.10918534,179.83,179.82,0.66]
[1755580963681,8.10918534,179.83,179.78,8.16918534]
[1755580963885,8.10918534,179.83,179.8,0.66]
[1755580964086,8.10918534,179.83,179.78,0.06]
[1755580964285,8.10918534,179.83,179.79,0.66]
[1755580964589,8.10918534,179.81,179.79,0.66]
[1755580964758,8.10918534,179.8,179.78,0.06]
[1755580964954,8.10918534,179.79,179.78,0.06]
[1755580965354,8.10918534,179.79,179.78,0.72]
[1755580965786,8.10918534,179.79,179.78,0.06]
[1755580966868,34.10918534,179.79,179.78,0.06]
[1755580967694,34.10918534,179.79,179.78,0.72]
[1755580967892,26.0,179.79,179.78,0.72]
[1755580968061,8.10918534,179.8,179.78,0.72]
[1755580968264,8.10918534,179.81,179.79,0.66]
[1755580968995,26.0,179.81,179.79,0.66]
[1755580969171,8.10918534,179.8,179.79,0.66]
[1755580969492,8.10918534,179.8,179.78,0.06]
[1755580969675,8.10918534,179.79,179.78,0.06]
[1755580970189,8.76918534,179.79,179.78,0.06]
[1755580970394,12.8770288,179.79,179.78,0.06]
[1755580970600,26.0,179.76,179.75,0.06]
[1755580970892,38.22004892,179.76,179.75,0.06]
[1755580971071,38.88004892,179.76,179.75,0.06]
[1755580972373,74.850249,179.76,179.75,0.06]
[1755580972575,15.10621557,179.75,179.73,0.06]
[1755580972768,56.3464465,179.74,179.73,0.06]
[1755580972969,60.04845051,179.74,179.73,0.06]
[1755580973200,60.70845051,179.74,179.73,0.06]
[1755580974897,60.04845051,179.74,179.73,0.06]
[1755580975102,56.3464465,179.74,179.73,0.06]
[1755580975291,82.3464465,179.74,179.73,0.06]
[1755580975494,69.71086358,179.74,179.73,0.06]
[1755580975697,42.7464465,179.74,179.73,0.06]
[1755580976381,42.7464465,179.74,179.73,0.72]
[1755580976779,4.11086358,179.74,179.73,0.72]
[1755580976975,16.7464465,179.74,179.73,0.06]
[1755580977202,12.63558292,179.74,179.73,0.72]
[1755580977397,16.76464027,179.74,179.73,0.72]
[1755580977790,4.12905735,179.74,179.73,0.72]
[1755580977996,4.13189677,179.74,179.73,0.72]
[1755580978781,12.63558292,179.78,179.73,0.72]
[1755580978982,4.13458909,179.77,179.73,13.35558292]
[1755580979190,4.13458909,179.76,179.74,0.66]
[1755580979388,12.63558292,179.78,179.74,0.66]
[1755580979682,16.77345722,179.77,179.74,0.66]
[1755580979884,4.1378743,179.76,179.75,0.66]
[1755580980288,4.1378743,179.76,179.74,12.63558292]
[1755580980498,12.63558292,179.8,179.74,12.63558292]
[1755580980711,4.14077055,179.79,179.75,13.29558292]
[1755580981014,132.7,179.82,179.78,12.63558292]
[1755580981218,4.14002051,179.81,179.77,12.63558292]
[1755580981381,20.50509363,179.8,179.74,12.63558292]
[1755580981585,7.86951071,179.79,179.77,0.66]
[1755580981782,4.14002051,179.78,179.77,0.66]
[1755580982193,16.77560343,179.78,179.75,0.66]
[1755580982389,12.63558292,179.76,179.73,0.06]
[1755580982592,4.15025347,179.75,179.74,0.66]
[1755580982798,16.78583639,179.75,179.74,0.06]
[1755580983000,4.15025347,179.75,179.74,0.72]
[1755580984702,3.73640461,179.78,179.74,13.35558292]
[1755580985015,12.63558292,179.78,179.75,0.66]
[1755580985228,16.37249663,179.77,179.74,0.06]
[1755580985435,16.788044,179.76,179.74,0.72]
[1755580985598,12.63558292,179.78,179.75,0.66]
[1755580985926,3.73704087,179.79,179.75,0.66]
[1755580986090,4.15257379,179.78,179.75,0.66]
[1755580986293,3.73699971,179.79,179.75,0.66]
[1755580986532,4.15281337,179.78,179.75,0.66]
[1755580987217,4.15281337,179.78,179.76,0.66]
[1755580987392,12.63558292,179.79,179.76,0.66]
[1755580987921,16.37344594,179.79,179.76,0.66]
[1755580988121,12.63558292,179.79,179.76,0.66]
[1755580988421,16.37344594,179.79,179.76,0.66]
[1755580988624,12.63558292,179.79,179.76,0.66]
[1755580988829,12.63558292,179.77,179.74,26.06]
[1755580989032,12.63558292,179.75,179.74,0.06]
[1755580989206,12.63558292,179.76,179.74,0.75]
[1755580989705,12.63558292,179.77,179.74,0.75]
[1755580989911,16.37479326,179.77,179.74,0.75]
[1755580990117,12.63558292,179.77,179.74,0.75]
[1755580990623,12.63558292,179.75,179.74,0.06]
[1755580990838,20.53091047,179.75,179.74,0.06]
[1755580991145,21.24091047,179.75,179.74,0.06]
[1755580994342,32.19100883,179.75,179.74,0.06]
[1755580994500,21.24417541,179.75,179.74,0.06]
[1755580995421,21.24359288,179.75,179.74,0.06]
[1755580996303,16.72950934,179.75,179.74,0.06]
[1755580997822,42.01950934,179.75,179.74,0.06]
[1755580998351,42.72950934,179.75,179.74,0.06]
[1755580998750,42.01950934,179.75,179.74,0.06]
[1755580999645,33.89800996,179.75,179.74,0.06]
[1755580999852,42.01950934,179.75,179.74,0.06]
[1755581000558,11.86070972,179.75,179.74,0.75]
[1755581000742,8.12149938,179.75,179.74,0.75]
[1755581000937,11.86070972,179.76,179.74,0.75]
[1755581001336,11.86070972,179.76,179.74,0.06]
[1755581002247,8.12149938,179.75,179.74,0.06]
[1755581002555,26.0,179.77,179.74,0.06]
[1755581002853,8.12149938,179.75,179.74,0.06]
[1755581004841,26.0,179.77,179.74,0.06]
[1755581005048,0.03,179.81,179.76,8.12149938]
[1755581005222,0.03,179.81,179.78,8.12149938]
[1755581005442,0.03,179.81,179.79,0.69]
[1755581005853,0.03,179.81,179.8,0.69]
[1755581006046,0.03,179.81,179.77,8.12149938]
[1755581006242,0.03,179.81,179.78,0.69]
[1755581006442,8.15149938,179.81,179.78,0.69]
[1755581006963,0.03,179.81,179.79,0.69]
[1755581007160,0.03,179.81,179.77,8.12149938]
[1755581007161,0.03,179.81,179.8,0.69]
[1755581007659,0.03,179.81,179.8,8.81149938]
[1755581008660,0.03,179.81,179.8,0.69]
[1755581010665,0.03,179.81,179.75,0.69]
[1755581010666,8.86149938,179.81,179.75,0.69]
[1755581010970,8.12149938,179.79,179.75,0.69]
[1755581011337,8.12149938,179.79,179.74,0.06]
[1755581011639,8.12149938,179.79,179.76,0.69]
[1755581011846,8.12149938,179.78,179.75,0.69]
[1755581012838,8.12149938,179.76,179.74,0.06]
[1755581013446,8.12149938,179.75,179.74,0.06]
[1755581013966,8.83149938,179.75,179.74,0.06]
[1755581014557,34.83149938,179.75,179.74,0.06]
[1755581014766,38.98840531,179.75,179.74,0.06]
[1755581015455,34.83149938,179.75,179.74,0.06]
[1755581016263,42.72861299,179.75,179.74,0.06]
[1755581016473,47.23952205,179.75,179.74,0.06]
[1755581020353,21.23952205,179.75,179.74,0.06]
[1755581020869,41.90901995,179.75,179.74,0.06]
[1755581021068,41.90901995,179.75,179.7,0.06]
[1755581021069,41.10621557,179.71,179.7,0.06]
[1755581021375,15.10621557,179.7,179.62,0.72]
[1755581021583,12.63240844,179.69,179.62,0.72]
[1755581021742,21.22069562,179.69,179.62,0.72]
[1755581022867,23.45302562,179.69,179.62,0.72]
[1755581023773,22.76302562,179.69,179.6,12.63240844]
[1755581023992,38.63240844,179.69,179.68,1.70605368]
[1755581024159,12.63240844,179.7,179.68,1.70605368]
[1755581024489,12.63240844,179.7,179.68,0.98605368]
[1755581024886,26.0,179.7,179.68,0.98605368]
[1755581025048,39.74,179.73,179.69,0.72]
[1755581025256,39.76,179.75,179.69,0.72]
[1755581025453,12.63240844,179.72,179.69,0.72]
[1755581025862,12.63240844,179.73,179.69,0.72]
[1755581026164,12.63240844,179.74,179.69,0.72]
[1755581026344,12.63240844,179.77,179.72,12.63240844]
[1755581026553,4.4354794,179.78,179.71,12.63240844]
[1755581026743,4.4354794,179.78,179.73,0.72]
[1755581026744,12.63240844,179.77,179.73,0.72]
[1755581026948,30.4354794,179.78,179.69,5.5649505]
[1755581026949,12.63240844,179.76,179.74,0.72]
[1755581027643,0.03,179.78,179.75,0.72]
[1755581027875,0.03,179.78,179.75,13.35240844]
[1755581028057,0.03,179.78,179.75,0.72]
[1755581028247,0.03,179.78,179.76,0.72]
[1755581028771,0.03,179.78,179.76,13.35240844]
[1755581029147,0.03,179.78,179.77,0.72]
[1755581030448,0.03,179.78,179.77,13.35240844]
[1755581030776,0.03,179.78,179.77,0.72]
[1755581034255,12.66240844,179.78,179.74,0.72]
[1755581034854,12.66240844,179.78,179.75,0.72]
[1755581037389,12.66240844,179.78,179.73,0.72]
[1755581037390,145.33240844,179.77,179.73,0.72]
[1755581037572,12.63240844,179.76,179.73,0.72]
[1755581038390,132.7,179.77,179.73,0.72]
[1755581038696,145.33240844,179.77,179.74,0.72]
[1755581039698,132.7,179.77,179.75,0.72]
[1755581040190,132.7,179.77,179.76,0.72]
[1755581040391,132.7,179.77,179.76,13.35240844]
[1755581040599,0.03,179.78,179.76,13.35240844]
[1755581040782,0.03,179.78,179.77,0.72]
[1755581040983,0.03,179.78,179.77,13.35240844]
[1755581041972,0.03,179.78,179.77,28.45862401]
[1755581042201,0.03,179.78,179.77,68.21862401]
[1755581044506,0.03,179.78,179.77,73.78128741]
[1755581046382,0.03,179.78,179.77,69.25798032]
[1755581048981,0.03,179.78,179.77,63.69531692]
[1755581049375,0.03,179.78,179.77,69.25798032]
[1755581052406,0.03,179.78,179.77,95.25798032]
[1755581052702,0.03,179.78,179.77,97.48744832]
[1755581054531,0.03,179.78,179.77,71.48744832]
[1755581054882,0.03,179.8,179.79,41.10621557]
[1755581055078,0.03,179.8,179.79,88.85531692]
[1755581055290,0.03,179.8,179.79,89.53531692]
[1755581056090,0.03,179.8,179.79,95.09736152]
[1755581057514,0.03,179.8,179.79,97.32658052]
[1755581059207,0.03,179.8,179.79,86.98826017]
[1755581059412,0.03,179.8,179.79,95.09736152]
[1755581060909,0.71,179.8,179.79,41.10621557]
[1755581061087,0.71,179.8,179.79,80.68621557]
[1755581061702,0.71,179.8,179.79,54.68621557]
[1755581062207,0.03,179.8,179.79,54.68621557]
[1755581062398,0.71,179.8,179.79,39.58]
[1755581062601,0.03,179.8,179.79,39.58]
[1755581063513,0.71,179.8,179.79,39.58]
[1755581064015,0.03,179.8,179.79,39.58]
[1755581064588,0.71,179.8,179.79,39.58]
[1755581068913,8.81910135,179.8,179.79,39.58]
[1755581070123,0.71,179.8,179.79,39.58]
[1755581070291,0.03,179.8,179.79,39.58]
[1755581070494,0.03,179.8,179.79,63.47531692]
[1755581071120,0.03,179.8,179.79,47.68910135]
[1755581071903,0.03,179.8,179.79,63.47531692]
[1755581072811,0.03,179.8,179.79,69.03736152]
[1755581074903,0.03,179.8,179.79,95.03736152]
[1755581076429,0.03,179.81,179.8,15.10621557]
[1755581076733,0.03,179.81,179.8,23.89531692]
[1755581078921,0.03,179.81,179.8,29.45705218]
[1755581080845,1e-08,179.83,179.82,41.10621557]
[1755581081135,0.69,179.93,179.85,41.10621557]
[1755581081306,0.69,179.93,179.86,15.10621557]
[1755581081507,0.69,179.93,179.86,15.80621557]
[1755581082229,0.69,179.93,179.86,23.91531692]
[1755581082529,0.03,179.95,179.86,29.47519682]
[1755581082829,0.69,179.92,179.86,29.47519682]
[1755581084827,0.03,179.95,179.86,29.47519682]
[1755581084828,0.69,179.94,179.86,29.47519682]
[1755581085503,0.69,179.94,179.9,15.10621557]
[1755581085704,0.69,179.94,179.93,23.21531692]
[1755581085929,0.03,179.95,179.93,62.77531692]
[1755581086127,0.03,179.95,179.94,8.80910135]
[1755581086305,0.03,179.95,179.94,23.91531692]
[1755581086520,0.03,179.95,179.94,28.77272494]
[1755581087537,0.72,179.95,179.94,23.21531692]
[1755581089129,0.72,179.95,179.93,39.56]
[1755581090323,0.69,179.94,179.93,39.56]
[1755581091235,0.03,179.95,179.94,15.10621557]
[1755581091737,0.03,179.95,179.94,23.21531692]
[1755581094633,0.72,179.95,179.94,23.21531692]
[1755581095339,0.72,179.95,179.93,39.56]
[1755581095544,0.69,179.94,179.93,39.56]
[1755581096644,0.03,179.95,179.94,15.10621557]
[1755581096819,0.03,179.95,179.94,23.21531692]
[1755581097425,0.03,179.95,179.94,15.10621557]
[1755581097648,0.03,179.95,179.94,23.21531692]
[1755581098121,0.72,179.95,179.93,39.56]
[1755581098326,0.69,179.94,179.93,39.56]
[1755581100724,0.69,179.94,179.92,26.0]
[1755581100943,0.03,179.95,179.93,39.56]
[1755581101433,0.69,179.94,179.93,39.56]
[1755581102223,8.79910135,179.94,179.9,26.0]
[1755581102438,0.03,179.95,179.91,65.56]
[1755581102439,8.79910135,179.93,179.91,65.56]
[1755581102620,0.69,179.92,179.91,65.56]
[1755581103649,8.79910135,179.92,179.91,39.56]
[1755581104827,8.10910135,179.93,179.91,39.56]
[1755581105053,8.79910135,179.93,179.91,39.56]
[1755581105233,141.52910135,179.95,179.91,39.56]
[1755581105433,0.69,179.94,179.91,39.56]
[1755581105633,8.10910135,179.94,179.91,39.56]
[1755581105834,8.79910135,179.93,179.91,39.56]
[1755581106038,132.73,179.95,179.91,40.26]
[1755581106332,0.03,179.95,179.94,34.10910135]
[1755581106535,0.03,179.95,179.94,65.56]
[1755581106736,0.03,179.95,179.94,73.66910135]
[1755581108256,0.73,179.95,179.94,39.56]
[1755581108431,8.83910135,179.95,179.94,39.56]
[1755581108750,8.83910135,179.95,179.89,26.0]
[1755581109059,8.80910135,179.94,179.9,39.56]
[1755581109253,0.03,179.95,179.9,39.56]
[1755581109565,8.80910135,179.93,179.9,39.56]
[1755581109752,0.7,179.93,179.9,39.56]
[1755581110253,8.83910135,179.95,179.9,48.36910135]
[1755581110445,0.03,179.95,179.92,8.10910135]
[1755581110759,0.73,179.95,179.93,39.56]
[1755581111151,0.7,179.94,179.93,39.56]
[1755581111630,8.80910135,179.94,179.93,39.56]
[1755581111959,0.7,179.94,179.93,39.56]
[1755581112667,8.80910135,179.94,179.93,39.56]
[1755581112853,132.7,179.93,179.87,0.06]
[1755581113160,8.10910135,179.91,179.88,39.56]
[1755581113364,8.80910135,179.91,179.88,39.56]
[1755581113544,0.7,179.9,179.88,39.56]
[1755581113742,8.80910135,179.9,179.88,39.56]
[1755581114148,0.7,179.9,179.88,39.56]
[1755581114573,8.10910135,179.91,179.88,39.56]
[1755581114962,132.7,179.92,179.9,8.10910135]
[1755581115171,132.7,179.92,179.91,48.36910135]
[1755581115344,0.03,179.95,179.91,48.36910135]
[1755581115539,0.03,179.95,179.92,8.80910135]
[1755581115769,0.03,179.95,179.93,39.56]
[1755581116170,0.03,179.95,179.94,0.7]
[1755581116370,0.03,179.95,179.93,48.36910135]
[1755581116872,0.03,179.95,179.93,40.26]
[1755581117090,0.03,179.95,179.93,48.36910135]
[1755581117644,0.03,179.95,179.93,47.66910135]
[1755581117845,0.03,179.95,179.94,0.7]
[1755581119566,0.03,179.95,179.93,39.56]
[1755581119875,0.03,179.95,179.93,48.36910135]
[1755581120078,8.13910135,179.95,179.91,15.10621557]
[1755581120245,8.10910135,179.93,179.92,39.56]
[1755581120444,8.10910135,179.94,179.92,39.56]
[1755581120650,0.03,179.95,179.92,40.26]
[1755581121352,0.03,179.95,179.93,8.80910135]
[1755581121565,0.03,179.95,179.94,39.56]
[1755581122749,0.03,179.95,179.9,8.10910135]
[1755581122750,8.83910135,179.95,179.9,8.10910135]
[1755581122962,8.10910135,179.94,179.91,39.54]
[1755581123166,8.80910135,179.94,179.91,39.54]
[1755581123487,8.13910135,179.95,179.91,40.24]
[1755581124862,8.83910135,179.95,179.91,40.24]
[1755581125163,0.03,179.95,179.93,8.10910135]
[1755581125366,0.03,179.95,179.94,39.54]
[1755581125971,0.73,179.95,179.94,39.54]
[1755581126159,0.03,179.95,179.94,39.54]
[1755581130051,8.13910135,179.95,179.94,39.54]
[1755581130271,8.83910135,179.95,179.94,39.54]
[1755581130472,0.03,179.95,179.94,39.54]
[1755581131349,0.03,179.95,179.94,40.24]
[1755581131554,0.03,179.95,179.94,48.34910135]
[1755581131750,0.03,179.95,179.94,63.45531692]
[1755581131952,0.03,179.95,179.94,69.01272494]
[1755581133555,0.1,179.96,179.94,69.01272494]
[1755581133556,0.1,179.96,179.95,15.10621557]
[1755581133756,0.1,179.96,179.95,23.91531692]
[1755581134570,0.1,179.96,179.95,49.91531692]
[1755581135456,0.1,179.96,179.95,41.10621557]
[1755581135678,0.1,179.96,179.94,39.54]
[1755581136060,0.03,179.95,179.94,54.64621557]
[1755581136263,0.03,179.95,179.94,39.54]
[1755581136580,0.03,179.95,179.94,40.24]
[1755581136763,0.03,179.95,179.94,63.45531692]
[1755581137462,0.03,179.95,179.94,69.01272494]
[1755581140257,0.03,179.95,179.94,71.23995794]
[1755581144005,0.1,179.96,179.95,15.10621557]
[1755581144305,0.1,179.96,179.95,23.88531692]
[1755581145385,0.03,179.97,179.95,29.44241611]
[1755581145680,0.1,179.99,179.97,15.10621557]
[1755581145901,0.1,179.99,179.98,62.73531692]
[1755581146380,0.1,179.99,179.98,63.40531692]
[1755581147217,0.1,180.0,179.99,15.10621557]
[1755581147377,0.1,180.0,179.99,37.55028248]
[1755581147572,0.03,180.05,179.99,37.55028248]
[1755581147771,0.03,180.05,180.0,70.84441827]
[1755581147970,0.03,180.05,180.0,71.51441827]
[1755581148273,1e-08,180.01,180.0,73.74066027]
[1755581148491,0.03,180.05,180.04,15.10621557]
[1755581148729,0.03,180.05,180.04,62.73531692]
[1755581148913,0.03,180.05,180.04,63.40531692]
[1755581149316,0.03,180.05,180.04,68.95963818]
[1755581149608,1e-08,180.05,180.04,68.95963818]
[1755581149997,0.66,180.12,180.06,41.10621557]
[1755581150197,0.66,180.12,180.06,88.73531692]
[1755581150495,0.66,180.12,180.06,89.40531692]
[1755581150690,0.1,180.13,180.11,15.10621557]
[1755581150915,0.1,180.13,180.12,62.73531692]
[1755581151295,0.1,180.13,180.12,60.17806988]
[1755581151732,0.76,180.13,180.12,54.62621557]
[1755581152617,0.76,180.13,180.12,39.52]
[1755581153396,0.76,180.13,180.12,54.62621557]
[1755581153724,0.1,180.13,180.12,68.95717123]
[1755581156008,0.1,180.13,180.12,77.06627323]
[1755581157610,0.66,180.22,180.16,15.10621557]
[1755581157818,0.66,180.22,180.18,23.21531692]
[1755581158127,0.66,180.22,180.19,39.52]
[1755581158426,0.66,180.21,180.19,39.52]
[1755581158628,0.66,180.2,180.19,39.52]
[1755581158815,8.76910135,180.2,180.15,26.0]
[1755581159011,8.10910135,180.18,180.16,39.5]
[1755581159212,8.10910135,180.24,180.17,39.52]
[1755581159414,8.10910135,180.18,180.17,39.52]
[1755581159834,8.76910135,180.18,180.17,39.52]
[1755581160022,0.66,180.18,180.17,39.52]
[1755581160326,8.76910135,180.18,180.17,39.52]
[1755581162314,13.23046381,180.18,180.17,39.52]
[1755581166943,132.7,180.17,180.13,39.5]
[1755581167124,12.57046381,180.14,180.12,39.5]
[1755581167318,13.23046381,180.13,180.12,39.5]
[1755581167525,13.23046381,180.13,180.11,39.5]
[1755581167845,13.23046381,180.12,180.11,39.5]
[1755581169951,13.23046381,180.12,180.08,0.06]
[1755581170122,0.68,180.11,180.08,39.56]
[1755581170322,12.57046381,180.09,180.08,39.56]
[1755581170635,13.25046381,180.09,180.08,39.56]
[1755581172545,132.7,180.14,180.08,39.56]
[1755581172849,12.57046381,180.13,180.09,0.67]
[1755581173028,12.57046381,180.13,180.1,0.67]
[1755581173245,12.57046381,180.13,180.11,39.5]
[1755581173821,13.25046381,180.16,180.12,0.67]
[1755581174059,12.57046381,180.16,180.12,0.67]
[1755581174366,12.57046381,180.13,180.08,0.06]
[1755581174561,0.68,180.15,180.09,39.5]
[1755581174845,26.0,180.14,180.09,39.5]
[1755581175042,0.68,180.13,180.09,39.5]
[1755581175618,12.57046381,180.1,180.09,39.5]
[1755581176725,0.68,180.1,180.09,39.5]
[1755581176925,13.25046381,180.1,180.09,39.5]
[1755581177858,13.25046381,180.1,180.08,0.06]
[1755581178085,145.95046381,180.09,180.0,0.67]
[1755581178218,38.57046381,180.07,179.98,15.10621557]
[1755581178537,38.57046381,180.07,180.01,39.52]
[1755581178719,39.25046381,180.07,180.01,39.52]
[1755581181263,43.37871456,180.07,180.01,39.52]
[1755581181426,12.57046381,180.02,179.95,0.67]
[1755581181624,12.57046381,179.97,179.95,0.67]
[1755581181841,12.57046381,179.98,179.96,39.52]
[1755581182045,12.57046381,179.98,179.96,40.19]
[1755581182433,8.097746,179.97,179.93,15.10621557]
[1755581182640,8.097746,179.97,179.94,0.67]
[1755581182847,8.097746,179.95,179.92,39.52]
[1755581183156,8.097746,179.95,179.93,0.67]
[1755581184124,8.097746,179.96,179.94,0.67]
[1755581185243,8.097746,179.96,179.95,0.67]
[1755581185636,132.7,180.05,179.96,15.10621557]
[1755581185960,132.7,180.05,180.02,8.097746]
[1755581186123,8.777746,180.06,180.02,39.56]
[1755581186330,8.777746,180.05,180.02,39.56]
[1755581187365,26.0,180.07,180.02,39.56]
[1755581187545,8.097746,180.06,180.02,40.23]
[1755581187740,8.097746,180.06,180.03,0.67]
[1755581188044,8.097746,180.08,180.04,0.67]
[1755581188356,8.097746,180.08,180.05,0.67]
[1755581188357,12.58159259,180.08,180.05,0.67]
[1755581188726,12.58159259,180.07,180.02,52.81159259]
[1755581188937,12.58159259,180.06,180.02,40.23]
[1755581189350,13.26159259,180.06,180.02,39.56]
[1755581189835,13.26159259,180.06,180.02,40.23]
[1755581190058,12.58159259,180.06,180.02,40.23]
[1755581190226,12.58159259,180.06,180.03,0.67]
[1755581190423,12.58159259,180.06,180.02,39.56]
[1755581190629,13.26159259,180.06,180.02,39.56]
[1755581190867,13.26159259,180.06,180.02,40.23]
[1755581191165,12.58159259,180.06,180.03,0.67]
[1755581191329,12.58159259,180.09,180.04,0.67]
[1755581191530,132.7,180.08,180.04,0.67]
[1755581191731,132.7,180.08,180.05,0.67]
[1755581192255,145.96159259,180.08,180.03,15.10621557]